fUSD/lending_fUSD_20240203
["ID","MTS","AMOUNT","RATE_DAILY","PERIOD"]
[313198478,1706925034636,-1073.11,0.00022691,2]
[313198479,1706925034645,-273.93602195,0.00022691,2]
[313198480,1706925034654,-180.38182132,0.00022691,2]
[313198481,1706925034666,-150.41177244,0.00022691,2]
[313198482,1706925034675,-539.55545084,0.00022691,2]
[313198483,1706925034684,-500.0,0.00022691,2]
[313198484,1706925034693,-546.68739444,0.00022691,2]
[313198485,1706925034702,-176.30409001,0.00022691,2]
[313198486,1706925034712,-184.31643743,0.00022691,2]
[313198487,1706925034721,-568.1971327,0.00022691,2]
[313198488,1706925034730,-500.0,0.00022691,2]
[313198489,1706925034739,-538.13937157,0.00022691,2]
[313198490,1706925034748,-500.0,0.00022691,2]
[313198491,1706925034758,-585.269002,0.00022691,2]
[313198492,1706925034768,-500.0,0.00022691,2]
[313198493,1706925034777,-562.03608571,0.00022691,2]
[313198494,1706925034786,-569.77015196,0.00022691,2]
[313198495,1706925034795,-199.61673827,0.00022691,2]
[313198496,1706925034804,-167.72878755,0.00022691,2]
[313198497,1706925034813,-570.59964319,0.00022691,2]
[313198498,1706925034822,-558.85409642,0.00022691,2]
[313198499,1706925034831,-214.75687905,0.00022691,2]
[313198500,1706925034840,-500.0,0.00022691,2]
[313198501,1706925034849,-550.41586324,0.00022691,2]
[313198502,1706925034858,-536.70431428,0.00022691,2]
[313198503,1706925034868,-500.0,0.00022691,2]
[313198504,1706925034877,-500.0,0.00022691,2]
[313198505,1706925034888,-544.62499604,0.00022691,2]
[313198506,1706925034898,-292.9663698,0.00022691,2]
[313198507,1706925034907,-580.69,0.00022691,2]
[313198508,1706925034916,-555.41016455,0.00022691,2]
[313198509,1706925034925,-500.0,0.00022691,2]
[313198510,1706925034934,-549.71848147,0.00022691,2]
[313198511,1706925034943,-500.0,0.00022691,2]
[313198512,1706925034953,-649.64916655,0.00022691,2]
[313198513,1706925034962,-500.0,0.00022691,2]
[313198514,1706925034971,-500.0,0.00022691,2]
[313198515,1706925034980,-536.43700295,0.00022691,2]
[313198516,1706925034989,-281.08758224,0.00022691,2]
[313198517,1706925034998,-500.0,0.00022691,2]
[313198518,1706925035007,-500.0,0.00022691,2]
[313198519,1706925035016,-616.57506034,0.00022691,2]
[313198520,1706925035025,-500.0,0.00022691,2]
[313198521,1706925035034,-171.56363266,0.00022691,2]
[313198522,1706925035044,-172.38231077,0.00022691,2]
[313198523,1706925035053,-1093.62,0.00022691,2]
[313198524,1706925035063,-500.0,0.00022691,2]
[313198525,1706925035072,-500.0,0.00022691,2]
[313198526,1706925035081,-500.0,0.00022691,2]
[313198527,1706925035090,-201.28525884,0.00022691,2]
[313198528,1706925035099,-174.25274334,0.00022691,2]
[313198529,1706925035108,-500.0,0.00022691,2]
[313198530,1706925035118,-500.0,0.00022691,2]
[313198531,1706925035127,-500.0,0.00022691,2]
[313198532,1706925035136,-500.0,0.00022691,2]
[313198533,1706925035146,-500.0,0.00022691,2]
[313198534,1706925035156,-586.11058533,0.00022691,2]
[313198535,1706925035165,-500.0,0.00022691,2]
[313198536,1706925035174,-500.0,0.00022691,2]
[313198537,1706925035183,-500.0,0.00022691,2]
[313198538,1706925035192,-612.85148527,0.00022691,2]
[313198539,1706925035201,-500.0,0.00022691,2]
[313198540,1706925035210,-555.8697135,0.00022691,2]
[313198541,1706925035219,-595.34544814,0.00022691,2]
[313198542,1706925035228,-500.0,0.00022691,2]
[313198543,1706925035237,-503.06438079,0.00022691,2]
[313198544,1706925035246,-500.0,0.00022691,2]
[313198545,1706925035255,-507.54370482,0.00022691,2]
[313198546,1706925035265,-576.8905564,0.00022691,2]
[313198547,1706925035274,-500.0,0.00022691,2]
[313198548,1706925035284,-520.42351759,0.00022691,2]
[313198549,1706925035293,-159.56333234,0.00022691,2]
[313198550,1706925035303,-535.50128085,0.00022691,2]
[313198551,1706925035312,-500.0,0.00022691,2]
[313198552,1706925035322,-185.72126311,0.00022691,2]
[313198553,1706925035331,-436.42373643,0.00022691,2]
[313198554,1706925035341,-160.1911885,0.00022692,2]
[313198555,1706925035350,-1266.03229827,0.00022692,2]
[313198556,1706925035359,-722.42686077,0.00022692,2]
[313198557,1706925035369,-224.96660305,0.00022692,2]
[313198558,1706925035378,-1076.38269677,0.00022692,2]
[313198559,1706925035388,-232.78325283,0.00022692,2]
[313198560,1706925035397,-6683.45030916,0.00022692,2]
[313198561,1706925035407,-165.59459174,0.00022692,2]
[313198562,1706925035416,-511.36870586,0.00022692,2]
[313198563,1706925035425,-436.83406346,0.00022692,2]
[313198564,1706925035434,-171.64469725,0.00022692,2]
[313198565,1706925035444,-233.67906562,0.00022692,2]
[313198566,1706925035454,-599.00130537,0.00022692,2]
[313198567,1706925035463,-888.96389902,0.00022692,2]
[313198568,1706925035473,-285.69196608,0.00022692,2]
[313198569,1706925035482,-155.40612872,0.00022692,2]
[313198570,1706925035491,-122631.4144079,0.00022692,2]
[313198571,1706925035691,-8666.99555221,0.00022692,2]
[313198572,1706925035704,-329.89918106,0.00022692,2]
[313198573,1706925035723,-316.80177103,0.00022692,2]
[313198574,1706925035736,-352.43022645,0.00022692,2]
[313198575,1706925035748,-281.63740935,0.00022692,2]
[313198576,1706925035759,-266.1619309,0.00022692,2]
[313198577,1706925035779,-271.96834426,0.00022692,2]
[313198578,1706925035791,-1496.45993775,0.00022692,2]
[313198587,1706925038155,-616.5834729,0.0002269,2]
[313198588,1706925038166,-44.72176852,0.00022691,2]
[313198589,1706925038345,-439.55856318,0.00022691,2]
[313198590,1706925038355,-508.23601145,0.00022691,2]
[313198591,1706925038365,-500.0,0.00022691,2]
[313198592,1706925038374,-35217.47395593,0.00022692,2]
[313198593,1706925038476,-3643.91466801,0.00022692,2]
[313198594,1706925038495,-5264.58072365,0.00022692,2]
[313198713,1706925040807,-500.0,0.0002269,5]
[313198714,1706925040817,-158.40791371,0.0002269,2]
[313198715,1706925040827,-500.0,0.0002269,2]
[313198716,1706925040836,-502.66680747,0.00022691,2]
[313198717,1706925040845,-512.18565868,0.00022691,2]
[313198718,1706925040855,-132.56220565,0.00022691,2]
[313198719,1706925040867,-24.91973667,0.00022691,2]
[313198720,1706925040876,-4179.98026332,0.00022692,2]
[313198739,1706925044526,-500.0,0.0002269,2]
[313198741,1706925044536,-500.0,0.0002269,2]
[313198743,1706925044546,-504.45187405,0.00022691,2]
[313198744,1706925044556,-25.79445913,0.00022691,2]
[313198782,1706925046471,-566.49653313,0.0002269,2]
[313198783,1706925046481,-500.0,0.0002269,2]
[313198784,1706925046491,-474.20554087,0.00022691,2]
[313198785,1706925046501,-161.21824409,0.00022691,2]
[313198786,1706925046510,-500.0,0.00022691,2]
[313198787,1706925046519,-17565.30817678,0.00022692,2]
[313198790,1706925061667,307.17306683,0.00021782,2]
[313198791,1706925062652,3200.29032374,0.00021782,2]
[313198792,1706925068561,1000.0,0.000225,2]
[313198793,1706925070820,3936.10547775,0.00022463,2]
[313198794,1706925075482,1487.70953689,0.00021704,2]
[313198795,1706925076042,1487.70953689,0.00022018,2]
[313198796,1706925076272,14485.68,0.00021836,2]
[313198797,1706925076343,1487.70953689,0.000223,2]
[313198798,1706925076883,156.3303734,0.00020421,2]
[313198799,1706925129568,247.49,0.00019911,2]
[313198800,1706925129802,247.49,0.00022175,2]
[313198801,1706925130327,186.13,0.00021829,2]
[313198802,1706925136435,267.57153281,0.00020421,2]
[313198803,1706925137221,750.0,0.00021824,2]
[313198804,1706925140157,166.07,0.00021824,2]
[313198805,1706925152432,352.43589612,0.00020421,2]
[313198806,1706925188824,505.06,0.00021783,2]
[313198807,1706925198277,1503.34308138,0.00022121,2]
[313198808,1706925198571,1503.34308138,0.00022455,2]
[313198809,1706925236647,167.87,0.0002189,2]
[313198810,1706925236857,167.87,0.0002208,2]
[313198811,1706925237089,167.87,0.0002227,2]
[313198812,1706925237266,167.87,0.0002246,2]
[313198813,1706925244085,200.0,0.00021714,2]
[313198814,1706925247288,1159.39450848,0.0002,2]
[313198815,1706925255948,3424.0,0.00022463,2]
[313198816,1706925260642,168.92,0.00021708,2]
[313198818,1706925266110,250.0,0.00021918,2]
[313198819,1706925318528,1503.34308139,0.00022425,2]
[313198820,1706925337324,196.48,0.00021703,2]
[313198821,1706925338779,409.92,0.00021703,2]
[313198822,1706925347907,150.0,0.00021703,2]
[313198823,1706925359654,9919.07,0.00021703,2]
[313198824,1706925367969,250.0,0.00021698,2]
[313198825,1706925385873,2000.0,0.00021694,2]
[313198826,1706925398922,23900.0,0.00021694,2]
[313198827,1706925415571,167.1,0.00021694,2]
[313198828,1706925517612,9043.09,0.00021693,2]
[313198829,1706925530701,500.0,0.00021693,2]
[313198830,1706925543871,209.0,0.00021854,2]
[313198831,1706925543898,594.15,0.00021693,2]
[313198832,1706925557258,789.3,0.00021693,2]
[313198833,1706925604870,222.74,0.00019776,2]
[313198834,1706925605427,222.74,0.0002204,2]
[313198835,1706925624924,420.88,0.00021702,2]
[313198836,1706925637333,167.87,0.00021866,2]
[313198837,1706925637538,167.87,0.00022436,2]
[313198838,1706925643834,181.37395054,0.00022,2]
[313198839,1706925851147,672.06,0.00021698,2]
[313198840,1706925856691,4463.0,0.0002246,2]
[313198842,1706925908906,2915.3596,0.000225,2]
[313198843,1706925937226,154.69089213,0.00022433,2]
[313198844,1706925942168,154.6908921,0.00022497,2]
[313198845,1706926032021,232.53,0.0001976,2]
[313198846,1706926032285,232.53,0.00022024,2]
[313198847,1706926061641,196.48,0.00021678,2]
[313198848,1706926067363,350.73,0.0002168,2]
[313198849,1706926082446,31968.27245656,0.000224,2]
[313198850,1706926082473,168031.72754344,0.000224,2]
[313198851,1706926145577,167.87,0.00021837,2]
[313198886,1706926232572,-150.0,0.00022531,2]
[313198887,1706926232582,-150.0,0.00022531,2]
[313198888,1706926232592,-4502.51531173,0.00022532,2]
[313198889,1706926232602,-1606.42245077,0.00022533,2]
[313198890,1706926232612,-33870.40873225,0.00022561,2]
[313198891,1706926232621,-154.6908921,0.00022562,2]
[313198892,1706926232631,-26184.4792,0.00022581,2]
[313198893,1706926232642,-247.75516176,0.00022585,2]
[313198894,1706926232653,-196.32621979,0.00022586,2]
[313198895,1706926232663,-559.84233536,0.00022588,2]
[313198896,1706926232672,-403.3249,0.00022589,2]
[313198897,1706926232681,-21566.91410674,0.0002259,2]
[313198900,1706926232691,-784.1163,0.0002259,2]
[313198903,1706926232701,-3086.58,0.0002259,2]
[313198904,1706926232710,-129791.74434938,0.000226,2]
[313198906,1706926232720,-7545.447,0.000226,2]
[313198907,1706926232730,-456.18,0.000226,2]
[313198909,1706926232738,-154.6908921,0.00022626,2]
[313198911,1706926232748,-247.75516175,0.0002263,2]
[313198912,1706926232757,-1834.57,0.00022633,2]
[313198914,1706926232769,-499.99,0.00022633,2]
[313198916,1706926232778,-293.57,0.00022633,2]
[313198917,1706926232787,-150.99,0.00022633,2]
[313198919,1706926232797,-800.0,0.00022658,2]
[313198920,1706926232806,-192.11534418,0.00022675,2]
[313198922,1706926232815,-247.75516175,0.00022675,2]
[313198924,1706926232825,-241.32877707,0.00022677,2]
[313198925,1706926232834,-500.0,0.00022684,2]
[313198927,1706926232844,-500.0,0.00022684,2]
[313198929,1706926232853,-612.69,0.00022684,2]
[313198930,1706926232862,-500.0,0.00022684,2]
[313198932,1706926232872,-500.0,0.00022684,2]
[313198934,1706926232881,-500.0,0.00022684,2]
[313198935,1706926232891,-500.0,0.00022684,2]
[313198936,1706926232902,-500.0,0.00022684,2]
[313198938,1706926232911,-500.0,0.00022684,2]
[313198939,1706926232921,-500.0,0.00022684,2]
[313198941,1706926232931,-1154.21,0.00022684,2]
[313198942,1706926232941,-483.36713046,0.00022684,2]
[313198944,1706926232950,-500.0,0.00022684,2]
[313198946,1706926232960,-728.36,0.00022684,2]
[313198947,1706926232970,-500.0,0.00022684,2]
[313198949,1706926232979,-500.0,0.00022684,2]
[313198950,1706926232989,-500.0,0.00022684,2]
[313198963,1706926233154,-1007.93,0.00022684,2]
[313198965,1706926233164,-500.0,0.00022684,2]
[313198966,1706926233173,-500.0,0.00022684,2]
[313198967,1706926233183,-500.0,0.00022684,2]
[313198968,1706926233193,-500.0,0.00022684,2]
[313198969,1706926233202,-500.0,0.00022684,2]
[313198970,1706926233211,-500.0,0.00022684,2]
[313198971,1706926233220,-500.0,0.00022684,2]
[313198972,1706926233229,-500.0,0.00022684,2]
[313198973,1706926233240,-500.0,0.00022684,2]
[313198974,1706926233250,-500.0,0.00022684,2]
[313198975,1706926233259,-500.0,0.00022684,2]
[313198976,1706926233268,-500.0,0.00022684,2]
[313198977,1706926233278,-500.0,0.00022684,2]
[313198978,1706926233287,-500.0,0.00022684,2]
[313198979,1706926233296,-500.0,0.00022684,2]
[313198980,1706926233305,-500.0,0.00022684,2]
[313198981,1706926233314,-618.29405648,0.00022684,2]
[313198982,1706926233323,-500.0,0.00022684,2]
[313198983,1706926233333,-500.0,0.00022684,2]
[313198984,1706926233342,-500.0,0.00022684,2]
[313198985,1706926233351,-514.06725067,0.00022684,2]
[313198986,1706926233360,-500.0,0.00022684,2]
[313198987,1706926233370,-478.64371775,0.00022684,2]
[313198988,1706926233379,-500.0,0.00022684,2]
[313198989,1706926233389,-500.0,0.00022684,2]
[313198990,1706926233400,-500.0,0.00022684,2]
[313198991,1706926233409,-500.0,0.00022684,2]
[313198992,1706926233418,-500.0,0.00022684,2]
[313198993,1706926233428,-500.0,0.00022684,2]
[313198994,1706926233437,-500.0,0.00022684,2]
[313198995,1706926233447,-500.0,0.00022684,2]
[313198996,1706926233457,-500.0,0.00022684,2]
[313198997,1706926233466,-500.0,0.00022684,2]
[313198998,1706926233476,-672.24,0.00022684,2]
[313198999,1706926233487,-500.0,0.00022684,2]
[313199000,1706926233496,-1048.05,0.00022684,2]
[313199001,1706926233505,-500.0,0.00022684,2]
[313199002,1706926233514,-500.0,0.00022684,2]
[313199003,1706926233524,-500.0,0.00022684,2]
[313199004,1706926233533,-500.0,0.00022684,2]
[313199005,1706926233542,-500.0,0.00022684,2]
[313199006,1706926233551,-500.0,0.00022684,2]
[313199007,1706926233561,-500.0,0.00022684,2]
[313199008,1706926233571,-180.30252866,0.00022684,2]
[313199009,1706926233580,-500.0,0.00022684,2]
[313199010,1706926233590,-500.0,0.00022684,2]
[313199011,1706926233599,-500.0,0.00022684,2]
[313199012,1706926233609,-500.0,0.00022684,2]
[313199013,1706926233618,-500.0,0.00022684,2]
[313199014,1706926233627,-500.0,0.00022684,2]
[313199015,1706926233636,-500.0,0.00022684,2]
[313199016,1706926233645,-500.0,0.00022684,2]
[313199017,1706926233654,-500.0,0.00022684,2]
[313199018,1706926233663,-2574.92,0.00022684,2]
[313199019,1706926233673,-500.0,0.00022684,2]
[313199020,1706926233682,-500.0,0.00022684,2]
[313199021,1706926233691,-500.0,0.00022684,2]
[313199022,1706926233700,-500.0,0.00022684,2]
[313199023,1706926233709,-500.0,0.00022684,2]
[313199024,1706926233719,-500.0,0.00022684,2]
[313199025,1706926233728,-944.1,0.00022684,2]
[313199026,1706926233738,-500.0,0.00022684,2]
[313199027,1706926233747,-500.0,0.00022684,2]
[313199028,1706926233756,-500.0,0.00022684,2]
[313199029,1706926233765,-500.0,0.00022684,2]
[313199030,1706926233774,-500.0,0.00022684,2]
[313199031,1706926233784,-500.0,0.00022684,2]
[313199032,1706926233793,-500.0,0.00022684,2]
[313199033,1706926233804,-500.0,0.00022684,2]
[313199034,1706926233813,-500.0,0.00022684,2]
[313199035,1706926233823,-532.25163846,0.00022684,2]
[313199036,1706926233832,-551.33894033,0.00022684,2]
[313199037,1706926233842,-500.0,0.00022684,2]
[313199038,1706926233851,-500.0,0.00022684,2]
[313199039,1706926233860,-400.0,0.00022684,2]
[313199040,1706926233869,-946.63296454,0.00022685,2]
[313199041,1706926233879,-33559.01731848,0.00022685,2]
[313199042,1706926233888,-553.32998116,0.00022685,2]
[313199043,1706926233900,-500.0,0.00022685,2]
[313199044,1706926233910,-544.64183182,0.00022685,2]
[313199045,1706926233920,-518.51765752,0.00022685,2]
[313199046,1706926233929,-500.0,0.00022685,2]
[313199047,1706926233938,-522.43670727,0.00022685,2]
[313199048,1706926233948,-565.87841909,0.00022685,2]
[313199049,1706926233957,-500.0,0.00022685,2]
[313199050,1706926233967,-523.05646296,0.00022685,2]
[313199051,1706926233976,-570.88172827,0.00022685,2]
[313199052,1706926233985,-507.48746702,0.00022685,2]
[313199053,1706926233995,-513.23277295,0.00022685,2]
[313199054,1706926234004,-379.65176552,0.00022685,2]
[313199055,1706926234013,-613.54347922,0.00022685,2]
[313199056,1706926234022,-602.5792775,0.00022685,2]
[313199057,1706926234031,-532.96896823,0.00022685,2]
[313199058,1706926234040,-500.0,0.00022685,2]
[313199059,1706926234049,-576.42896821,0.00022685,2]
[313199060,1706926234061,-586.84977853,0.00022685,2]
[313199061,1706926234070,-573.26098817,0.00022685,2]
[313199062,1706926234081,-610.41092341,0.00022685,2]
[313199063,1706926234090,-555.73811964,0.00022685,2]
[313199064,1706926234099,-557.40791465,0.00022685,2]
[313199065,1706926234110,-550.32344011,0.00022685,2]
[313199066,1706926234120,-560.15002129,0.00022685,2]
[313199067,1706926234129,-500.0,0.00022685,2]
[313199068,1706926234139,-526.1544425,0.00022685,2]
[313199069,1706926234148,-500.0,0.00022685,2]
[313199070,1706926234156,-500.0,0.00022685,2]
[313199071,1706926234166,-525.60157327,0.00022685,2]
[313199072,1706926234174,-645.09606861,0.00022685,2]
[313199073,1706926234183,-500.0,0.00022685,2]
[313199074,1706926234193,-326.64212918,0.00022685,2]
[313199075,1706926234203,-552.69620328,0.00022685,2]
[313199076,1706926234212,-540.68722496,0.00022685,2]
[313199077,1706926234221,-358.70362669,0.00022685,2]
[313199078,1706926234232,-500.0,0.00022685,2]
[313199079,1706926234241,-529.59711629,0.00022685,2]
[313199080,1706926234250,-500.0,0.00022685,2]
[313199081,1706926234259,-606.99468935,0.00022685,2]
[313199082,1706926234268,-523.33913552,0.00022685,2]
[313199083,1706926234277,-605.03117377,0.00022685,2]
[313199084,1706926234286,-554.33036958,0.00022685,2]
[313199085,1706926234295,-500.0,0.00022685,2]
[313199086,1706926234305,-547.31914754,0.00022685,2]
[313199087,1706926234314,-539.63439827,0.00022685,2]
[313199088,1706926234323,-500.0,0.00022685,2]
[313199089,1706926234332,-597.65844137,0.00022685,2]
[313199090,1706926234341,-500.0,0.00022685,2]
[313199091,1706926234350,-507.69321326,0.00022685,2]
[313199092,1706926234359,-574.15791318,0.00022685,2]
[313199093,1706926234368,-500.0,0.00022685,2]
[313199094,1706926234377,-500.0,0.00022685,2]
[313199095,1706926234386,-546.27987331,0.00022685,2]
[313199096,1706926234395,-590.27801542,0.00022685,2]
[313199097,1706926234405,-590.45239115,0.00022685,2]
[313199098,1706926234414,-266.7947031,0.00022685,2]
[313199099,1706926234423,-503.23838864,0.00022685,2]
[313199100,1706926234432,-1121.18608005,0.00022685,2]
[313199101,1706926234441,-500.0,0.00022685,2]
[313199102,1706926234450,-526.35853936,0.00022685,2]
[313199103,1706926234459,-552.29012727,0.00022685,2]
[313199104,1706926234469,-540.14431136,0.00022685,2]
[313199105,1706926234477,-540.54272279,0.00022685,2]
[313199106,1706926234487,-500.0,0.00022685,2]
[313199107,1706926234496,-522.53805911,0.00022685,2]
[313199108,1706926234505,-545.09618801,0.00022685,2]
[313199109,1706926234514,-620.49475366,0.00022685,2]
[313199110,1706926234523,-534.23336295,0.00022685,2]
[313199111,1706926234532,-574.4025028,0.00022685,2]
[313199112,1706926234541,-527.36565513,0.00022685,2]
[313199113,1706926234550,-236.0081546,0.00022685,2]
[313199114,1706926234559,-564.77887517,0.00022685,2]
[313199115,1706926234569,-613.43871988,0.00022685,2]
[313199116,1706926234578,-570.23315235,0.00022685,2]
[313199117,1706926234587,-642.55215867,0.00022685,2]
[313199118,1706926234596,-570.90315151,0.00022685,2]
[313199119,1706926234605,-569.52054046,0.00022685,2]
[313199120,1706926234615,-511.03762636,0.00022685,2]
[313199121,1706926234624,-559.8451884,0.00022685,2]
[313199122,1706926234632,-515.6634084,0.00022685,2]
[313199123,1706926234642,-556.77313066,0.00022685,2]
[313199124,1706926234651,-507.05939554,0.00022685,2]
[313199125,1706926234660,-500.0,0.00022685,2]
[313199126,1706926234669,-561.05804013,0.00022685,2]
[313199127,1706926234678,-500.0,0.00022685,2]
[313199128,1706926234687,-512.20583012,0.00022685,2]
[313199129,1706926234698,-500.0,0.00022685,2]
[313199130,1706926234707,-530.23354652,0.00022685,2]
[313199131,1706926234716,-574.88893348,0.00022685,2]
[313199132,1706926234726,-494.86498181,0.00022685,2]
[313199133,1706926234735,-530.0005198,0.00022685,2]
[313199134,1706926234744,-524.70298196,0.00022685,2]
[313199135,1706926234753,-552.56206571,0.00022685,2]
[313199136,1706926234762,-527.01612281,0.00022685,2]
[313199137,1706926234771,-636.71509556,0.00022685,2]
[313199138,1706926234781,-520.60232333,0.00022685,2]
[313199139,1706926234790,-506.01080319,0.00022685,2]
[313199140,1706926234799,-552.24496984,0.00022685,2]
[313199141,1706926234808,-500.0,0.00022685,2]
[313199142,1706926234817,-514.44130799,0.00022685,2]
[313199143,1706926234826,-537.08335998,0.00022685,2]
[313199144,1706926234836,-500.0,0.00022685,2]
[313199145,1706926234845,-571.38886099,0.00022685,2]
[313199146,1706926234854,-583.45850041,0.00022685,2]
[313199147,1706926234863,-619.16292863,0.00022685,2]
[313199148,1706926234872,-500.0,0.00022685,2]
[313199149,1706926234882,-500.0,0.00022685,2]
[313199150,1706926234894,-500.0,0.00022685,2]
[313199151,1706926234903,-500.0,0.00022685,2]
[313199152,1706926234912,-548.39985854,0.00022685,2]
[313199153,1706926234921,-513.67949009,0.00022685,2]
[313199154,1706926234930,-279.81107923,0.00022685,2]
[313199155,1706926234939,-500.0,0.00022685,2]
[313199156,1706926234949,-500.0,0.00022685,2]
[313199157,1706926234958,-524.05952023,0.00022685,2]
[313199158,1706926234968,-500.0,0.00022685,2]
[313199159,1706926234977,-500.0,0.00022685,2]
[313199160,1706926234987,-540.63096011,0.00022685,2]
[313199161,1706926234996,-500.0,0.00022685,2]
[313199162,1706926235005,-500.0,0.00022685,2]
[313199163,1706926235014,-542.3534808,0.00022685,2]
[313199164,1706926235024,-500.0,0.00022685,2]
[313199165,1706926235033,-500.0,0.00022685,2]
[313199166,1706926235043,-216.43005752,0.00022685,2]
[313199167,1706926235052,-210.49558356,0.00022685,2]
[313199168,1706926235062,-500.0,0.00022685,2]
[313199169,1706926235071,-160.94513231,0.00022685,2]
[313199170,1706926235081,-500.0,0.00022685,2]
[313199171,1706926235090,-500.0,0.00022685,2]
[313199172,1706926235100,-629.11979517,0.00022685,2]
[313199173,1706926235109,-500.0,0.00022685,2]
[313199174,1706926235119,-171.36823974,0.00022685,2]
[313199175,1706926235128,-432.73424206,0.00022685,2]
[313199176,1706926235137,-500.0,0.00022685,2]
[313199177,1706926235147,-535.39838694,0.00022685,2]
[313199178,1706926235157,-526.66873939,0.00022685,2]
[313199179,1706926235167,-500.0,0.00022685,2]
[313199180,1706926235176,-507.79225743,0.00022685,2]
[313199181,1706926235185,-530.52767596,0.00022685,2]
[313199182,1706926235195,-500.0,0.00022685,2]
[313199183,1706926235205,-534.64925014,0.00022685,2]
[313199184,1706926235214,-500.0,0.00022685,2]
[313199185,1706926235222,-500.0,0.00022685,2]
[313199186,1706926235232,-300.25627029,0.00022685,2]
[313199187,1706926235241,-374.56635498,0.00022685,2]
[313199188,1706926235251,-565.21265251,0.00022685,2]
[313199189,1706926235260,-642.17180328,0.00022685,2]
[313199190,1706926235269,-500.0,0.00022685,2]
[313199191,1706926235365,-500.0,0.00022685,2]
[313199192,1706926235388,-450.0,0.00022685,2]
[313199193,1706926235397,-518.24513829,0.00022685,2]
[313199194,1706926235407,-500.0,0.00022685,2]
[313199195,1706926235416,-745.41,0.00022685,2]
[313199196,1706926235425,-223.00360554,0.00022685,2]
[313199197,1706926235435,-600.83103832,0.00022685,2]
[313199198,1706926235446,-500.0,0.00022685,2]
[313199199,1706926235455,-567.18820022,0.00022685,2]
[313199200,1706926235465,-568.15840382,0.00022685,2]
[313199201,1706926235474,-518.9714806,0.00022685,2]
[313199202,1706926235484,-560.08922849,0.00022685,2]
[313199203,1706926235493,-500.0,0.00022685,2]
[313199204,1706926235503,-508.88558889,0.00022685,2]
[313199205,1706926235513,-505.94049232,0.00022685,2]
[313199206,1706926235522,-500.0,0.00022685,2]
[313199207,1706926235532,-505.33091755,0.00022685,2]
[313199208,1706926235542,-500.0,0.00022685,2]
[313199209,1706926235552,-500.0,0.00022685,2]
[313199210,1706926235562,-705.42,0.00022685,2]
[313199211,1706926235572,-500.0,0.00022685,2]
[313199212,1706926235583,-527.59170234,0.00022685,2]
[313199213,1706926235593,-447.21088773,0.00022685,2]
[313199214,1706926235603,-500.0,0.00022685,2]
[313199215,1706926235612,-579.1518905,0.00022685,2]
[313199216,1706926235622,-500.0,0.00022685,2]
[313199217,1706926235632,-500.0,0.00022685,2]
[313199218,1706926235642,-500.0,0.00022685,2]
[313199219,1706926235652,-523.65089376,0.00022685,2]
[313199220,1706926235662,-500.0,0.00022685,2]
[313199221,1706926235671,-500.0,0.00022685,2]
[313199222,1706926235680,-214.31605622,0.00022685,2]
[313199223,1706926235690,-500.0,0.00022685,2]
[313199224,1706926235700,-500.0,0.00022685,2]
[313199225,1706926235710,-500.0,0.00022685,2]
[313199226,1706926235719,-634.61,0.00022685,2]
[313199227,1706926235729,-500.0,0.00022685,2]
[313199228,1706926235739,-969.55,0.00022685,2]
[313199229,1706926235748,-500.0,0.00022685,2]
[313199230,1706926235758,-500.0,0.00022685,2]
[313199231,1706926235767,-500.0,0.00022685,2]
[313199232,1706926235777,-551.27687848,0.00022685,2]